bitfinex/quotes_SOLUSD_20241231
["timestamp","ask_amount","ask_price","bid_price","bid_amount"]
[1735652681965,5.1143,195.53,195.38,15.79227352]
[1735652681966,15.79227352,195.45,195.38,15.79227352]
[1735652682173,15.79227352,195.42,195.35,17.40367352]
[1735652682722,15.79227352,195.42,195.36,0.25098]
[1735652684383,15.79227352,195.42,195.35,17.40367352]
[1735652684563,15.79227352,195.41,195.35,1.6114]
[1735652684761,15.79227352,195.42,195.36,24.027864]
[1735652684957,15.79227352,195.43,195.36,39.82013752]
[1735652685675,15.79227352,195.45,195.38,16.04325352]
[1735652686581,15.79227352,195.46,195.4,0.25098]
[1735652686771,13.318,195.52,195.4,16.04325352]
[1735652686970,15.79227352,195.47,195.4,16.04325352]
[1735652687175,13.318,195.52,195.37,12.7958]
[1735652687176,15.79227352,195.48,195.42,0.25098]
[1735652687383,15.79227352,195.48,195.42,16.04325352]
[1735652689473,15.79227352,195.48,195.43,23.776884]
[1735652689680,15.79227352,195.51,195.44,15.79227352]
[1735652689858,20.0,195.52,195.45,16.04325352]
[1735652689859,15.79227352,195.52,195.45,16.04325352]
[1735652690888,15.79227352,195.51,195.44,17.40367352]
[1735652691974,20.0,195.53,195.44,17.40367352]
[1735652692289,15.79227352,195.49,195.44,1.6114]
[1735652693985,15.79227352,195.49,195.43,0.25098]
[1735652694880,35.79227352,195.44,195.32,1.6272]
[1735652695084,15.79227352,195.4,195.33,15.79227352]
[1735652695584,15.79227352,195.41,195.33,15.79227352]
[1735652695892,15.79227352,195.41,195.34,15.79227352]
[1735652696666,15.79227352,195.42,195.37,0.12549]
[1735652697795,15.79227352,195.41,195.34,15.79227352]
[1735652698293,15.79227352,195.4,195.33,16.16874352]
[1735652698667,15.79227352,195.41,195.35,0.25098]
[1735652698866,15.79227352,195.41,195.35,16.04325352]
[1735652699291,15.79227352,195.42,195.35,16.04325352]
[1735652699794,15.79227352,195.41,195.35,0.25098]
[1735652701370,15.79227352,195.41,195.35,16.04325352]
[1735652701804,15.79227352,195.42,195.35,16.04325352]
[1735652704897,1.6257,195.47,195.38,15.79227352]
[1735652705105,15.79227352,195.46,195.39,15.79227352]
[1735652705587,15.79227352,195.44,195.38,0.25098]
[1735652706876,15.79227352,195.44,195.38,15.79227352]
[1735652707301,15.79227352,195.46,195.39,16.04325352]
[1735652708177,1.6446,195.52,195.43,16.04325352]
[1735652708395,6.5679,195.53,195.45,15.79227352]
[1735652708583,6.5679,195.53,195.46,15.79227352]
[1735652708584,15.79227352,195.53,195.46,15.79227352]
[1735652709095,15.79227352,195.52,195.46,15.79227352]
[1735652709280,15.79227352,195.52,195.45,15.79227352]
[1735652709486,15.79227352,195.52,195.46,0.25098]
[1735652710405,35.79227352,195.53,195.46,15.79227352]
[1735652711201,35.79227352,195.53,195.47,0.25098]
[1735652712201,35.79227352,195.53,195.47,15.79227352]
[1735652713601,35.79227352,195.53,195.47,0.25098]
[1735652714106,15.79227352,195.49,195.42,15.79227352]
[1735652714486,15.79227352,195.48,195.41,17.30657352]
[1735652714980,15.79227352,195.48,195.42,24.027864]
[1735652717012,15.79227352,195.49,195.42,24.027864]
[1735652717186,15.79227352,195.49,195.42,39.82013752]
[1735652718801,15.79227352,195.5,195.44,0.25098]
[1735652719006,15.79227352,195.53,195.46,16.04325352]
[1735652720406,15.79227352,195.52,195.46,0.25098]
[1735652720918,15.79227352,195.49,195.42,15.79227352]
[1735652721225,15.79227352,195.49,195.4,19.0298]
[1735652721226,15.79227352,195.48,195.41,17.30657352]
[1735652722417,15.79227352,195.49,195.42,15.79227352]
[1735652722628,15.79227352,195.5,195.43,16.04325352]
[1735652724303,8.62874119,195.58,195.43,16.04325352]
[1735652724304,2.06084119,195.58,195.48,0.37647]
[1735652724491,6.6652,195.62,195.56,15.79227352]
[1735652724993,15.79227352,195.6,195.51,24.027864]
[1735652725192,15.79227352,195.6,195.53,15.79227352]
[1735652725193,20.0,195.59,195.53,15.79227352]
[1735652725393,15.79227352,195.6,195.53,15.79227352]
[1735652728309,15.79227352,195.6,195.52,15.79227352]
[1735652728511,35.79227352,195.59,195.52,15.79227352]
[1735652729812,15.79227352,195.58,195.51,39.82013752]
[1735652731410,35.79227352,195.59,195.52,15.79227352]
[1735652733323,1.634,195.65,195.55,16.04325352]
[1735652733516,15.79227352,195.63,195.56,15.79227352]
[1735652733903,15.79227352,195.64,195.57,15.79227352]
[1735652734105,15.79227352,195.63,195.56,15.79227352]
[1735652734714,15.79227352,195.63,195.57,0.25098]
[1735652734932,15.79227352,195.64,195.57,0.25098]
[1735652737127,15.79227352,195.64,195.57,15.79227352]
[1735652739339,15.79227352,195.64,195.58,0.25098]
[1735652740925,6.6652,195.68,195.58,0.25098]
[1735652740926,15.79227352,195.65,195.58,16.04325352]
[1735652741124,15.79227352,195.66,195.6,0.25098]
[1735652742038,15.79227352,195.66,195.6,0.12549]
[1735652742240,15.79227352,195.65,195.59,0.25098]
[1735652742408,15.79227352,195.66,195.59,16.04325352]
[1735652744229,20.0,195.69,195.61,0.12549]
[1735652744435,15.79227352,195.66,195.61,0.12549]
[1735652747044,15.79227352,195.71,195.63,16.16874352]
[1735652747221,15.79227352,195.71,195.65,0.12549]
[1735652748532,15.79227352,195.71,195.6,6.0268]
[1735652748533,15.79227352,195.66,195.55,6.0268]
[1735652748741,15.79227352,195.63,195.57,0.37647]
[1735652749130,15.79227352,195.62,195.57,0.37647]
[1735652749446,15.79227352,195.63,195.59,0.37647]
[1735652749828,15.79227352,195.64,195.59,24.153354]
[1735652750064,15.79227352,195.65,195.59,24.153354]
[1735652750840,15.79227352,195.65,195.59,16.16874352]
[1735652751358,15.79227352,195.7,195.65,0.12549]
[1735652751731,15.79227352,195.69,195.65,0.12549]
[1735652751932,15.79227352,195.69,195.64,0.12549]
[1735652752567,5.1092,195.73,195.56,10.0]
[1735652752568,15.79227352,195.67,195.61,15.79227352]
[1735652753034,15.79227352,195.67,195.62,24.027864]
[1735652754934,15.79227352,195.67,195.61,24.027864]
[1735652755451,15.79227352,195.65,195.61,0.12549]
[1735652755749,15.79227352,195.67,195.61,15.79227352]
[1735652755959,15.79227352,195.67,195.62,0.12549]
[1735652756170,15.79227352,195.67,195.62,0.25098]
[1735652756964,15.79227352,195.67,195.61,15.79227352]
[1735652757265,15.79227352,195.66,195.6,15.79227352]
[1735652757559,15.79227352,195.65,195.61,0.12549]
[1735652757819,15.79227352,195.65,195.6,23.776884]
[1735652757943,15.79227352,195.65,195.58,15.79227352]
[1735652759543,15.79227352,195.65,195.6,24.027864]
[1735652760664,15.79227352,195.63,195.55,143.6268]
[1735652760870,15.79227352,195.59,195.54,1.6641]
[1735652761374,15.79227352,195.58,195.51,28.57897352]
[1735652761579,15.79227352,195.58,195.52,24.153354]
[1735652761775,15.79227352,195.6,195.54,0.12549]
[1735652762572,15.79227352,195.59,195.52,39.94562752]
[1735652763153,15.79227352,195.56,195.49,7.7935]
[1735652763456,15.79227352,195.56,195.51,24.027864]
[1735652763662,15.79227352,195.56,195.49,17.43347352]
[1735652764280,15.79227352,195.56,195.5,24.153354]
[1735652764442,15.79227352,195.57,195.5,39.94562752]
[1735652764647,15.79227352,195.63,195.58,0.12549]
[1735652764865,1.5119,195.65,195.58,16.04325352]
[1735652764866,15.79227352,195.64,195.58,16.04325352]
[1735652765045,15.79227352,195.65,195.58,16.04325352]
[1735652765253,15.79227352,195.66,195.59,15.79227352]
[1735652765646,1.5119,195.7,195.58,0.25098]
[1735652765647,15.79227352,195.64,195.58,16.04325352]
[1735652765852,15.79227352,195.66,195.59,15.79227352]
[1735652766049,15.79227352,195.65,195.58,16.04325352]
[1735652766253,15.79227352,195.64,195.58,16.04325352]
[1735652766663,15.79227352,195.64,195.58,0.25098]
[1735652766953,15.79227352,195.64,195.58,16.04325352]
[1735652767358,17.30417352,195.7,195.6,0.25098]
[1735652767564,15.79227352,195.67,195.61,0.12549]
[1735652767770,6.0165,195.71,195.64,15.79227352]
[1735652767771,21.80877352,195.71,195.64,15.79227352]
[1735652768072,15.79227352,195.7,195.63,15.91776352]
[1735652769080,15.79227352,195.68,195.63,0.25098]
[1735652770483,15.79227352,195.69,195.63,0.25098]
[1735652772085,15.79227352,195.71,195.65,0.25098]
[1735652772382,15.79227352,195.72,195.65,16.04325352]
[1735652772981,35.79227352,195.72,195.65,16.04325352]
[1735652773184,15.79227352,195.73,195.67,16.04325352]
[1735652773570,15.79227352,195.74,195.67,16.04325352]
[1735652774481,15.79227352,195.73,195.66,15.79227352]
[1735652774683,15.79227352,195.72,195.65,15.79227352]
[1735652774884,15.79227352,195.73,195.66,15.79227352]
[1735652775090,15.79227352,195.73,195.67,16.04325352]
[1735652775293,15.79227352,195.75,195.69,0.12549]
[1735652776081,15.79227352,195.74,195.68,23.902374]
[1735652777695,15.79227352,195.73,195.66,39.56915752]
[1735652778678,15.79227352,195.73,195.67,0.12549]
[1735652779903,15.79227352,195.77,195.7,39.82013752]
[1735652780086,15.79227352,195.79,195.72,16.04325352]
[1735652780268,15.79227352,195.8,195.74,0.12549]
[1735652780675,7.7604,195.85,195.74,0.12549]
[1735652780676,15.79227352,195.82,195.76,0.12549]
[1735652781193,1.5215,195.85,195.78,0.12549]
[1735652781392,15.79227352,195.83,195.78,0.12549]
[1735652781697,15.79227352,195.83,195.76,15.79227352]
[1735652781902,15.79227352,195.83,195.77,24.027864]
[1735652782078,15.79227352,195.82,195.77,0.25098]
[1735652782776,15.79227352,195.83,195.77,0.25098]
[1735652785004,15.79227352,195.82,195.75,39.56915752]
[1735652785302,15.79227352,195.83,195.76,15.91776352]
[1735652786291,15.79227352,195.83,195.77,15.79227352]
[1735652788093,35.79227352,195.85,195.78,16.04325352]
[1735652788296,35.79227352,195.85,195.79,15.79227352]
[1735652788793,6.6264,195.91,195.81,15.79227352]
[1735652789104,15.79227352,195.89,195.82,15.79227352]
[1735652789282,21.522,195.91,195.83,15.79227352]
[1735652789488,21.522,195.91,195.78,0.25098]
[1735652789489,15.79227352,195.89,195.82,15.79227352]
[1735652789692,15.79227352,195.88,195.82,0.12549]
[1735652790897,15.79227352,195.87,195.81,0.25098]
[1735652791299,1.522,195.91,195.74,1.5139]
[1735652791300,15.79227352,195.84,195.74,1.5139]
[1735652791603,15.79227352,195.82,195.75,15.79227352]
[1735652792178,15.79227352,195.82,195.76,0.12549]
[1735652792603,15.79227352,195.82,195.76,15.79227352]
[1735652792808,15.79227352,195.81,195.76,0.12549]
[1735652793179,15.79227352,195.82,195.76,0.12549]
[1735652794509,1.522,195.91,195.78,0.12549]
[1735652794700,15.79227352,195.84,195.78,15.79227352]
[1735652794882,15.79227352,195.85,195.79,15.91776352]
[1735652795798,15.79227352,195.84,195.79,0.12549]
[1735652796002,15.79227352,195.85,195.79,0.12549]
[1735652796407,15.79227352,195.88,195.82,0.25098]
[1735652796614,1.522,195.91,195.82,0.25098]
[1735652796615,15.79227352,195.89,195.83,0.12549]
[1735652796789,15.79227352,195.88,195.83,0.12549]
[1735652797135,15.79227352,195.87,195.81,15.79227352]
[1735652798908,15.79227352,195.87,195.81,0.12549]
[1735652799210,15.79227352,195.86,195.81,0.12549]
[1735652800092,15.79227352,195.86,195.8,15.91776352]
[1735652800719,15.79227352,195.87,195.8,15.91776352]
[1735652801586,15.79227352,195.88,195.82,0.12549]
[1735652801904,35.79227352,195.89,195.82,15.91776352]
[1735652802091,15.79227352,195.89,195.82,15.91776352]
[1735652802715,15.79227352,195.9,195.83,39.82013752]
[1735652802918,20.0,195.91,195.84,15.29227352]
[1735652803213,15.79227352,195.9,195.84,15.29227352]
[1735652803510,35.79227352,195.91,195.85,0.12549]
[1735652804412,15.79227352,195.9,195.85,0.12549]
[1735652805318,35.79227352,195.91,195.85,0.25098]
[1735652805625,15.79227352,195.9,195.85,0.25098]
[1735652807409,20.0,195.91,195.85,0.25098]
[1735652807720,15.79227352,195.9,195.85,0.25098]
[1735652808100,15.79227352,195.89,195.82,17.35027352]
[1735652808294,15.79227352,195.88,195.82,17.35027352]
[1735652811423,35.79227352,195.91,195.85,0.12549]
[1735652813119,15.79227352,195.91,195.85,0.12549]
[1735652814633,15.79227352,195.9,195.85,0.12549]
[1735652815933,15.79227352,195.9,195.85,0.25098]
[1735652816108,15.79227352,195.92,195.85,16.04325352]
[1735652817232,15.79227352,195.9,195.85,0.25098]
[1735652817432,15.79227352,195.9,195.85,0.12549]
[1735652817732,15.79227352,195.9,195.83,39.69464752]
[1735652817937,15.79227352,195.9,195.84,0.25098]
[1735652820233,10.03353944,195.9,195.84,0.25098]
[1735652820433,10.03353944,195.87,195.82,1.558]
[1735652821512,10.03353944,195.87,195.83,0.12549]
[1735652822234,15.68107803,195.88,195.83,0.12549]
[1735652823540,15.68107803,195.88,195.79,12.7683]
[1735652823541,15.68107803,195.84,195.78,15.68107803]
[1735652823716,15.68107803,195.84,195.77,17.30947803]
[1735652824028,15.68107803,195.85,195.78,18.78145333]
[1735652824215,15.68107803,195.86,195.8,0.12549]
[1735652824838,15.68107803,195.87,195.8,15.80656803]
[1735652825027,15.68107803,195.88,195.83,0.12549]
[1735652825215,15.68107803,195.89,195.83,0.12549]
[1735652825726,15.68107803,195.9,195.84,0.12549]
[1735652826046,15.68107803,195.91,195.85,15.68107803]
[1735652826615,15.68107803,195.91,195.86,24.153354]
[1735652826931,15.68107803,196.0,195.88,16.05754803]
[1735652826932,15.68107803,195.95,195.88,16.05754803]
[1735652827112,15.68107803,195.95,195.89,15.68107803]
[1735652827320,15.68107803,195.96,195.9,0.12549]
[1735652827538,15.68107803,195.96,195.9,0.25098]
[1735652827747,15.68107803,195.97,195.9,15.93205803]
[1735652828246,15.68107803,195.96,195.9,0.25098]
[1735652828963,15.68107803,195.96,195.9,15.93205803]
[1735652829626,15.68107803,195.96,195.9,15.80656803]
[1735652829836,15.68107803,195.95,195.9,0.12549]
[1735652830449,15.68107803,195.96,195.9,0.12549]
[1735652831243,15.68107803,195.96,195.9,0.25098]
[1735652831640,15.68107803,195.96,195.91,0.12549]
[1735652832551,15.68107803,195.97,195.91,0.25098]
[1735652833252,15.68107803,195.97,195.91,0.12549]
[1735652833426,15.68107803,195.96,195.91,0.12549]
[1735652834253,15.68107803,195.96,195.9,24.027864]
[1735652835048,20.0,195.98,195.9,0.25098]
[1735652835226,20.0,195.98,195.88,15.68107803]
[1735652835537,15.68107803,195.94,195.88,15.68107803]
[1735652835924,15.68107803,195.95,195.89,24.027864]
[1735652836254,15.68107803,195.96,195.89,39.70894203]
[1735652836452,15.68107803,195.99,195.93,0.12549]
[1735652836951,15.68107803,195.97,195.93,0.12549]
[1735652837149,15.68107803,195.96,195.9,15.68107803]
[1735652838047,15.68107803,195.95,195.91,0.12549]
[1735652838566,15.68107803,195.96,195.91,0.12549]
[1735652839230,15.68107803,195.97,195.91,0.12549]
[1735652839742,15.68107803,195.97,195.92,0.12549]
[1735652840458,15.68107803,195.98,195.93,0.12549]
[1735652840825,15.68107803,195.97,195.93,0.12549]
[1735652841030,15.68107803,195.97,195.92,0.12549]
[1735652841253,15.68107803,195.97,195.92,15.80656803]
[1735652841440,15.68107803,195.98,195.92,15.80656803]
[1735652842141,15.68107803,195.99,195.94,0.12549]
[1735652842338,15.68107803,196.0,195.95,0.12549]
[1735652842638,8.2648,196.06,195.97,15.68107803]
[1735652842838,8.2648,196.06,195.98,0.12549]
[1735652843045,15.68107803,196.04,195.98,15.93205803]
[1735652843230,15.68107803,196.07,196.0,39.70894203]
[1735652844153,15.68107803,196.07,196.01,0.12549]
[1735652844451,15.68107803,196.09,196.04,24.027864]
[1735652846254,10.01399673,196.09,196.04,0.25098]
[1735652846437,10.01399673,196.1,196.04,24.027864]
[1735652846642,10.01399673,196.09,196.04,0.25098]
[1735652847263,10.01399673,196.1,196.04,0.25098]
[1735652847637,10.01399673,196.07,196.01,1.5051]
[1735652847934,10.01399673,196.07,196.02,24.153354]
[1735652848379,10.01399673,196.08,196.02,24.153354]
[1735652850346,15.64852795,196.08,196.02,24.153354]
[1735652850960,15.64852795,196.07,196.01,1.5051]
[1735652851673,20.0,196.13,196.04,15.64852795]
[1735652851877,15.64852795,196.12,196.05,15.64852795]
[1735652852065,15.64852795,196.12,196.06,24.153354]
[1735652852878,15.64852795,196.12,196.06,16.02499795]
[1735652853048,15.64852795,196.12,196.06,24.153354]
[1735652853449,15.64852795,196.12,196.06,16.02499795]
[1735652854262,15.64852795,196.13,196.06,16.02499795]
[1735652854864,15.64852795,196.12,196.06,15.89950795]
[1735652855078,15.64852795,196.12,196.05,15.64852795]
[1735652855275,15.64852795,196.12,196.06,24.153354]
[1735652855459,15.64852795,196.13,196.06,39.80188195]
[1735652855862,15.64852795,196.13,196.08,24.027864]
[1735652856066,20.0,196.16,196.08,24.027864]
[1735652856067,15.64852795,196.14,196.08,24.027864]
[1735652856461,15.64852795,196.13,196.08,24.027864]
[1735652857588,15.64852795,196.14,196.08,24.027864]
[1735652857765,15.64852795,196.14,196.08,15.89950795]
[1735652858372,15.64852795,196.14,196.08,24.027864]
[1735652858568,15.64852795,196.1,196.03,15.64852795]
[1735652858963,15.64852795,196.1,196.04,24.153354]
[1735652859263,15.64852795,196.08,196.01,17.15362795]
[1735652860175,15.64852795,196.08,196.02,24.027864]
[1735652863186,15.64852795,196.09,196.02,39.67639195]
[1735652863563,1.5277,196.17,196.04,39.67639195]
[1735652863761,1.5277,196.17,196.09,0.12549]
[1735652863762,15.64852795,196.15,196.09,0.12549]
[1735652864062,20.74542795,196.2,196.1,0.12549]
[1735652864063,15.64852795,196.16,196.1,0.12549]
[1735652865564,15.64852795,196.11,196.03,15.64852795]
[1735652865760,15.64852795,196.07,196.0,22.25132795]
[1735652865966,15.64852795,196.06,196.0,6.6028]
[1735652866561,15.64852795,196.06,196.02,24.027864]
[1735652866758,15.64852795,196.06,196.0,6.6028]
[1735652867161,15.64852795,196.06,196.02,24.027864]
[1735652867378,15.64852795,196.07,196.02,24.027864]
[1735652867783,15.64852795,196.08,196.02,39.67639195]
[1735652868888,15.64852795,196.07,196.02,24.027864]
[1735652869263,15.64852795,196.08,196.02,24.027864]
[1735652870571,15.64852795,196.07,196.02,24.027864]
[1735652871778,15.64852795,196.08,196.02,24.027864]
[1735652872861,15.64852795,196.07,196.02,24.027864]
[1735652874867,15.64852795,196.08,196.02,24.027864]
[1735652875186,5.0,196.18,196.02,24.027864]
[1735652875187,13.1016,196.22,196.03,28.52711795]
[1735652875488,15.64852795,196.17,196.11,24.027864]
[1735652876191,15.64852795,196.16,196.09,15.64852795]
[1735652876384,15.64852795,196.17,196.11,15.77401795]
[1735652876690,15.64852795,196.17,196.11,0.12549]
[1735652879401,15.64852795,196.16,196.11,0.12549]
[1735652879905,15.64852795,196.14,196.07,15.64852795]
[1735652880075,15.64852795,196.13,196.06,15.64852795]
[1735652880274,15.64852795,196.15,196.09,24.027864]
[1735652880794,15.64852795,196.16,196.09,39.67639195]
[1735652880978,15.64852795,196.16,196.09,15.89950795]
[1735652881795,15.64852795,196.16,196.1,15.77401795]
[1735652882007,35.64852795,196.19,196.13,24.027864]
[1735652884210,15.64852795,196.2,196.13,39.67639195]
[1735652884379,15.64852795,196.2,196.14,0.12549]
[1735652886612,7.14538873,196.26,196.14,15.77401795]
[1735652886782,15.64852795,196.21,196.15,24.027864]
[1735652886985,15.64852795,196.22,196.15,24.027864]
[1735652887381,15.64852795,196.22,196.15,15.89950795]
[1735652887876,15.64852795,196.22,196.15,24.027864]
[1735652889105,15.64852795,196.21,196.15,24.027864]
[1735652889481,20.0,196.18,196.12,1.5538]
[1735652889687,15.64852795,196.18,196.12,1.5538]
[1735652889890,15.64852795,196.18,196.13,24.027864]
[1735652890109,15.64852795,196.19,196.13,24.027864]
[1735652890298,10.00467988,196.19,196.13,24.027864]
[1735652890682,10.00467988,196.18,196.12,1.5538]
[1735652890884,10.00467988,196.17,196.12,1.5538]
[1735652891084,10.00467988,196.18,196.13,0.12549]
[1735652892008,10.00467988,196.18,196.12,1.5538]
[1735652892209,20.0,196.24,196.13,24.153354]
[1735652892509,15.63325632,196.2,196.13,39.78661032]
[1735652892879,15.63325632,196.19,196.13,24.153354]
[1735652893608,15.63325632,196.18,196.13,24.027864]
[1735652897213,15.63325632,196.19,196.13,24.027864]
[1735652898893,15.63325632,196.18,196.13,24.027864]
[1735652899098,15.63325632,196.19,196.13,24.027864]
[1735652901116,20.0,196.2,196.13,39.66112032]
[1735652901117,15.63325632,196.2,196.13,39.66112032]
[1735652901897,15.63325632,196.19,196.13,24.027864]
[1735652905814,15.63325632,196.18,196.13,24.027864]
[1735652906218,15.63325632,196.16,196.07,1.5778]
[1735652906419,5.0964,196.22,196.07,1.5778]
[1735652906420,15.63325632,196.14,196.07,1.5778]
[1735652906602,15.63325632,196.13,196.07,17.21105632]
[1735652906803,20.0,196.19,196.08,15.63325632]
[1735652907011,15.63325632,196.15,196.1,0.12549]
[1735652908335,15.63325632,196.16,196.1,15.88423632]
[1735652908517,15.63325632,196.17,196.12,0.12549]
[1735652909333,15.63325632,196.16,196.11,0.25098]
[1735652910824,20.0,196.19,196.11,0.25098]
[1735652911121,15.63325632,196.16,196.11,0.25098]
[1735652911304,15.63325632,196.17,196.11,0.25098]
[1735652911506,15.63325632,196.16,196.11,0.25098]
[1735652913801,2.02657479,196.24,196.12,0.12549]
[1735652914001,5.0,196.29,196.18,0.12549]
[1735652914225,9.9992186,196.24,196.18,0.12549]
[1735652914533,9.9992186,196.23,196.18,0.12549]
[1735652914704,5.0,196.29,196.18,0.12549]
[1735652914705,5.0,196.29,196.18,24.027864]
[1735652914909,10.04169837,196.27,196.18,24.027864]
[1735652915242,9.9992186,196.23,196.18,24.027864]
[1735652915720,9.9992186,196.21,196.16,23.902374]
[1735652915927,9.9992186,196.2,196.16,0.12549]
[1735652916313,9.9992186,196.21,196.15,24.027864]
[1735652916718,9.9992186,196.16,196.09,9.38907316]
[1735652916916,9.9992186,196.16,196.09,19.38829176]
[1735652917216,9.9992186,196.16,196.1,12.61838094]
[1735652917529,9.9992186,196.16,196.11,0.12549]
[1735652917916,9.9992186,196.17,196.11,0.12549]
[1735652918108,9.9992186,196.17,196.11,0.25098]
[1735652918313,9.9992186,196.17,196.13,0.12549]
[1735652918510,13.0484,196.27,196.15,0.25098]
[1735652918816,9.9992186,196.22,196.16,10.1247086]
[1735652919206,9.9992186,196.23,196.16,10.1247086]
[1735652919408,9.9992186,196.23,196.12,3.09973226]
[1735652919409,9.9992186,196.24,196.18,0.12549]
[1735652920132,9.9992186,196.26,196.2,0.12549]
[1735652920307,15.62076316,196.26,196.2,0.12549]
[1735652920733,8.047,196.32,196.23,0.12549]
[1735652920934,15.62076316,196.29,196.23,39.64862716]
[1735652921137,15.62076316,196.3,196.23,39.64862716]
[1735652921507,15.62076316,196.29,196.22,15.62076316]
[1735652921822,15.62076316,196.29,196.23,0.12549]
[1735652922724,15.62076316,196.28,196.18,7.81127316]
[1735652922912,1.5278,196.32,196.19,39.52313716]
[1735652922913,15.62076316,196.26,196.19,39.52313716]
[1735652923114,15.62076316,196.26,196.19,45.23523734]
[1735652923429,20.0,196.28,196.21,0.12549]
[1735652923430,15.62076316,196.27,196.21,0.12549]
[1735652923607,15.62076316,196.26,196.21,0.12549]
[1735652923805,15.62076316,196.26,196.2,0.12549]
[1735652924037,15.62076316,196.26,196.19,39.39764716]
[1735652924209,15.62076316,196.26,196.2,15.74625316]
[1735652924409,35.62076316,196.28,196.21,39.39764716]
[1735652924617,35.62076316,196.28,196.22,0.12549]
[1735652926843,15.62076316,196.27,196.22,0.12549]
[1735652927522,15.62076316,196.27,196.22,0.25098]
[1735652927848,15.62076316,196.29,196.22,15.87174316]
[1735652928346,15.62076316,196.29,196.23,15.62076316]
[1735652928528,15.62076316,196.29,196.24,0.12549]
[1735652928843,15.62076316,196.3,196.24,0.12549]
[1735652929044,15.62076316,196.3,196.24,24.027864]
[1735652929245,15.62076316,196.3,196.24,15.87174316]
[1735652929544,8.59731443,196.36,196.26,24.027864]
[1735652929748,15.62076316,196.32,196.26,24.027864]
[1735652930125,15.62076316,196.31,196.25,0.25098]
[1735652931049,15.62076316,196.3,196.25,0.12549]
[1735652931243,15.62076316,196.29,196.24,1.5299]
[1735652931434,11.612,196.36,196.27,0.12549]
[1735652931633,15.62076316,196.32,196.27,0.12549]
[1735652935050,35.62076316,196.33,196.27,0.12549]
[1735652935351,20.0,196.33,196.28,0.12549]
[1735652935553,6.4225,196.41,196.32,15.62076316]
[1735652935723,1.5533,196.43,196.33,15.62076316]
[1735652935724,15.62076316,196.4,196.33,15.62076316]
[1735652936141,15.62076316,196.4,196.34,15.74625316]
[1735652937161,15.62076316,196.4,196.34,0.12549]
[1735652937451,15.62076316,196.41,196.34,15.74625316]
[1735652937652,15.62076316,196.4,196.34,15.74625316]
[1735652937850,15.62076316,196.4,196.33,39.64862716]
[1735652939165,20.0,196.42,196.32,1.6374]
[1735652939166,15.62076316,196.38,196.32,1.6374]
[1735652939333,15.62076316,196.37,196.3,15.62076316]
[1735652939655,15.62076316,196.38,196.31,15.74625316]
[1735652941033,15.62076316,196.37,196.3,15.62076316]
[1735652941359,15.62076316,196.37,196.31,0.12549]
[1735652941533,15.62076316,196.39,196.32,15.62076316]
[1735652941856,15.62076316,196.39,196.33,0.12549]
[1735652942059,35.62076316,196.41,196.34,15.74625316]
[1735652942235,15.62076316,196.4,196.34,0.12549]
[1735652942433,15.62076316,196.39,196.34,0.12549]
[1735652943053,15.62076316,196.39,196.33,39.64862716]
[1735652943358,15.62076316,196.4,196.33,15.87174316]
[1735652943656,15.62076316,196.39,196.33,15.87174316]
[1735652943834,15.62076316,196.39,196.33,23.902374]
[1735652944358,15.62076316,196.39,196.33,15.74625316]
[1735652944751,15.62076316,196.39,196.31,0.12549]
[1735652944752,15.62076316,196.41,196.35,15.62076316]
[1735652945358,15.62076316,196.41,196.34,15.62076316]
[1735652947137,15.62076316,196.41,196.35,15.62076316]
[1735652947757,5.0906,196.44,196.35,15.62076316]
[1735652948339,15.62076316,196.41,196.34,15.62076316]
[1735652948538,15.62076316,196.4,196.34,15.62076316]
[1735652948755,15.62076316,196.4,196.33,15.62076316]
[1735652949439,15.62076316,196.39,196.32,15.62076316]
[1735652949639,15.62076316,196.38,196.32,15.62076316]
[1735652949872,5.0906,196.44,196.31,15.62076316]
[1735652949873,15.62076316,196.37,196.31,15.62076316]
[1735652950460,15.62076316,196.37,196.29,6.3706]
[1735652950461,15.62076316,196.37,196.3,15.62076316]
[1735652952045,15.62076316,196.36,196.3,15.62076316]
[1735652954867,15.62076316,196.36,196.29,21.99136316]
[1735652955476,15.62076316,196.36,196.3,39.52313716]
[1735652956063,15.62076316,196.36,196.29,21.99136316]
[1735652956250,9.98697883,196.36,196.29,16.35757883]
[1735652956445,20.0,196.38,196.29,16.35757883]
[1735652956640,9.98697883,196.36,196.29,16.35757883]
[1735652957169,9.98697883,196.37,196.3,9.98697883]
[1735652957376,9.98697883,196.37,196.31,9.98697883]
[1735652958365,9.98697883,196.37,196.3,9.98697883]
[1735652958566,9.98697883,196.36,196.29,16.35757883]